[Event "*** Titled Tuesday Blitz"]
[Site "Chess.com"]
[Date "2021.02.16"]
[Round "11"]
[White "Chernov_Alexander_A"]
[Black "barriochess"]
[Result "0-1"]
[WhiteElo "2280"]
[BlackElo "2432"]
[TimeControl "180+1"]
[EndTime "12:10:24 PST"]
[Termination "barriochess won on time"]

1. e4 {[%clk 0:02:56.8]} 1... d6 {[%clk 0:02:56.3]} 2. d4 {[%clk 0:02:54.5]}
2... Nf6 {[%clk 0:02:56.7]} 3. Nc3 {[%clk 0:02:53.4]} 3... g6 {[%clk 0:02:56.6]}
4. Bf4 {[%clk 0:02:53.2]} 4... c6 {[%clk 0:02:55.4]} 5. Qd2 {[%clk 0:02:53]}
5... b5 {[%clk 0:02:51.9]} 6. f3 {[%clk 0:02:51.9]} 6... Bb7 {[%clk 0:02:46.8]}
7. h4 {[%clk 0:02:47.7]} 7... Nbd7 {[%clk 0:02:46]} 8. Be3 {[%clk 0:02:41.1]}
8... e5 {[%clk 0:02:45]} 9. Nge2 {[%clk 0:02:29.9]} 9... h5 {[%clk 0:02:42]} 10.
Nd1 {[%clk 0:02:27.1]} 10... Qe7 {[%clk 0:02:36.9]} 11. Nf2 {[%clk 0:02:23.8]}
11... Nb6 {[%clk 0:02:33.6]} 12. b3 {[%clk 0:02:22.9]} 12... Bg7 {[%clk
0:02:28.3]} 13. Rd1 {[%clk 0:02:08.6]} 13... Nbd7 {[%clk 0:02:20.9]} 14. dxe5
{[%clk 0:01:55.9]} 14... dxe5 {[%clk 0:02:19.3]} 15. g4 {[%clk 0:01:25.1]} 15...
Nc5 {[%clk 0:02:06.3]} 16. Bg5 {[%clk 0:01:16.1]} 16... Rd8 {[%clk 0:01:58.3]}
17. Qe3 {[%clk 0:01:00.5]} 17... Rxd1+ {[%clk 0:01:55.4]} 18. Kxd1 {[%clk
0:01:00.3]} 18... a6 {[%clk 0:01:51.7]} 19. Kc1 {[%clk 0:00:59.4]} 19... Ne6
{[%clk 0:01:51.3]} 20. Bh3 {[%clk 0:00:43]} 20... Nxg5 {[%clk 0:01:41.9]} 21.
hxg5 {[%clk 0:00:42.1]} 21... Nd7 {[%clk 0:01:40.3]} 22. Rd1 {[%clk 0:00:37.7]}
22... Qc5 {[%clk 0:01:35]} 23. Qxc5 {[%clk 0:00:33.8]} 23... Nxc5 {[%clk
0:01:34.6]} 24. Nd3 {[%clk 0:00:30.6]} 24... Nxd3+ {[%clk 0:01:23.7]} 25. Rxd3
{[%clk 0:00:29.9]} 25... Bc8 {[%clk 0:01:24.4]} 26. Rd6 {[%clk 0:00:26.5]} 26...
hxg4 {[%clk 0:01:21.6]} 27. Bxg4 {[%clk 0:00:26.4]} 27... Bxg4 {[%clk
0:01:17.8]} 28. fxg4 {[%clk 0:00:25.8]} 28... Rh4 {[%clk 0:01:05.2]} 29. Rxc6
{[%clk 0:00:24]} 29... Rxg4 {[%clk 0:01:05.3]} 30. Rxa6 {[%clk 0:00:23.1]} 30...
Rxg5 {[%clk 0:01:01.8]} 31. Nc3 {[%clk 0:00:22.3]} 31... b4 {[%clk 0:00:59.1]}
32. Nd5 {[%clk 0:00:22]} 32... Rg4 {[%clk 0:00:53.8]} 33. Ra8+ {[%clk
0:00:15.7]} 33... Kd7 {[%clk 0:00:53]} 34. Ra7+ {[%clk 0:00:15.5]} 34... Ke8
{[%clk 0:00:37.7]} 35. Ra8+ {[%clk 0:00:15.1]} 35... Kd7 {[%clk 0:00:37.8]} 36.
Ra7+ {[%clk 0:00:14.9]} 36... Kd6 {[%clk 0:00:35.2]} 37. Rxf7 {[%clk 0:00:13.5]}
37... Bh6+ {[%clk 0:00:35.3]} 38. Kb2 {[%clk 0:00:12.3]} 38... Rxe4 {[%clk
0:00:32.6]} 39. Ne7 {[%clk 0:00:05.6]} 39... Bd2 {[%clk 0:00:29.4]} 40. a3
{[%clk 0:00:03.8]} 40... Bc3+ {[%clk 0:00:28.8]} 41. Ka2 {[%clk 0:00:03.1]}
41... Re1 {[%clk 0:00:27.6]} 0-1

[Event "*** Titled Tuesday Blitz"]
[Site "Chess.com"]
[Date "2021.02.16"]
[Round "11"]
[White "Khnykin_Nikolay"]
[Black "LenkaPtacnikova"]
[Result "1-0"]
[WhiteElo "2060"]
[BlackElo "2082"]
[TimeControl "180+1"]
[EndTime "12:10:24 PST"]
[Termination "Khnykin_Nikolay won on time"]

1. e4 {[%clk 0:03:00.9]} 1... c5 {[%clk 0:02:59.2]} 2. d4 {[%clk 0:03:00.2]}
2... cxd4 {[%clk 0:02:58.6]} 3. c3 {[%clk 0:03:00.5]} 3... Nf6 {[%clk
0:02:58.6]} 4. e5 {[%clk 0:02:59.5]} 4... Nd5 {[%clk 0:02:59.1]} 5. Bc4 {[%clk
0:02:59.3]} 5... e6 {[%clk 0:02:57.5]} 6. cxd4 {[%clk 0:02:58.2]} 6... d6 {[%clk
0:02:56.3]} 7. Nf3 {[%clk 0:02:57]} 7... Nc6 {[%clk 0:02:55.3]} 8. Bxd5 {[%clk
0:02:52.9]} 8... exd5 {[%clk 0:02:55]} 9. O-O {[%clk 0:02:53]} 9... Bg4 {[%clk
0:02:50.5]} 10. exd6 {[%clk 0:02:52.1]} 10... Bxd6 {[%clk 0:02:49.4]} 11. Re1+
{[%clk 0:02:51.8]} 11... Be7 {[%clk 0:02:44.6]} 12. Qb3 {[%clk 0:02:51.1]} 12...
Bxf3 {[%clk 0:02:37.7]} 13. gxf3 {[%clk 0:02:40.1]} 13... Qd7 {[%clk 0:02:23.1]}
14. Be3 {[%clk 0:02:32.3]} 14... O-O {[%clk 0:02:21.4]} 15. Nc3 {[%clk
0:02:29.9]} 15... Rfd8 {[%clk 0:02:19.1]} 16. Kh1 {[%clk 0:02:20.5]} 16... Bf6
{[%clk 0:02:15.7]} 17. Rg1 {[%clk 0:02:10.9]} 17... b6 {[%clk 0:02:04.4]} 18.
Qd1 {[%clk 0:01:53.4]} 18... Qf5 {[%clk 0:02:01]} 19. Rg3 {[%clk 0:01:48.8]}
19... Rac8 {[%clk 0:01:39.2]} 20. Qd2 {[%clk 0:01:45.8]} 20... Na5 {[%clk
0:01:33.2]} 21. Rag1 {[%clk 0:01:38.5]} 21... Nc4 {[%clk 0:01:30.9]} 22. Qe2
{[%clk 0:01:35.6]} 22... Re8 {[%clk 0:01:20.9]} 23. f4 {[%clk 0:01:09.9]} 23...
g6 {[%clk 0:01:06.2]} 24. Qf3 {[%clk 0:01:00.7]} 24... Nxb2 {[%clk 0:00:50.9]}
25. Nxd5 {[%clk 0:00:55.4]} 25... Nc4 {[%clk 0:00:46.1]} 26. Nxf6+ {[%clk
0:00:40.3]} 26... Qxf6 {[%clk 0:00:42.9]} 27. f5 {[%clk 0:00:40.3]} 27... Nxe3
{[%clk 0:00:30.4]} 28. fxe3 {[%clk 0:00:25.2]} 28... Rc2 {[%clk 0:00:23.1]} 29.
e4 {[%clk 0:00:20.2]} 29... Qxd4 {[%clk 0:00:18.7]} 30. fxg6 {[%clk 0:00:18.2]}
30... hxg6 {[%clk 0:00:13.6]} 31. Rxg6+ {[%clk 0:00:17.8]} 31... fxg6 {[%clk
0:00:06.7]} 32. Rxg6+ {[%clk 0:00:18.7]} 32... Qg7 {[%clk 0:00:04.1]} 33. Rxg7+
{[%clk 0:00:18.7]} 33... Kxg7 {[%clk 0:00:04.9]} 34. Qg4+ {[%clk 0:00:16.9]}
34... Kf7 {[%clk 0:00:02.2]} 35. Qf5+ {[%clk 0:00:16.9]} 35... Ke7 {[%clk
0:00:01.6]} 36. Qe5+ {[%clk 0:00:15.8]} 1-0

[Event "*** Titled Tuesday Blitz"]
[Site "Chess.com"]
[Date "2021.02.16"]
[Round "11"]
[White "WilliamSchill"]
[Black "PawnEatingZombie"]
[Result "1/2-1/2"]
[WhiteElo "2052"]
[BlackElo "2124"]
[TimeControl "180+1"]
[EndTime "12:10:25 PST"]
[Termination "Game drawn by repetition"]

1. e4 {[%clk 0:03:00.9]} 1... c6 {[%clk 0:03:00]} 2. d4 {[%clk 0:02:59.9]} 2...
d5 {[%clk 0:03:00.5]} 3. Nd2 {[%clk 0:02:59.9]} 3... dxe4 {[%clk 0:03:00.3]} 4.
Nxe4 {[%clk 0:02:59.8]} 4... Bf5 {[%clk 0:03:00.8]} 5. Qf3 {[%clk 0:02:57.2]}
5... e6 {[%clk 0:02:59.6]} 6. Be3 {[%clk 0:02:45.4]} 6... Nd7 {[%clk 0:02:44.2]}
7. Bd3 {[%clk 0:02:42.4]} 7... Bg6 {[%clk 0:02:40]} 8. Ne2 {[%clk 0:02:34.2]}
8... Ngf6 {[%clk 0:02:38.9]} 9. Nf4 {[%clk 0:02:26.7]} 9... Nxe4 {[%clk
0:02:35.8]} 10. Bxe4 {[%clk 0:02:26.2]} 10... Bxe4 {[%clk 0:02:33.7]} 11. Qxe4
{[%clk 0:02:25.9]} 11... Nf6 {[%clk 0:02:34.1]} 12. Qd3 {[%clk 0:02:22.8]} 12...
Bd6 {[%clk 0:02:29.3]} 13. Ne2 {[%clk 0:02:02.3]} 13... Qc7 {[%clk 0:02:25.8]}
14. O-O-O {[%clk 0:01:56.6]} 14... O-O-O {[%clk 0:02:12.4]} 15. Kb1 {[%clk
0:01:53.8]} 15... Kb8 {[%clk 0:02:11.6]} 16. Nc3 {[%clk 0:01:31.4]} 16... Bf4
{[%clk 0:02:01.8]} 17. g3 {[%clk 0:01:14.7]} 17... Bd6 {[%clk 0:01:51.7]} 18.
Ne4 {[%clk 0:01:10]} 18... Nxe4 {[%clk 0:01:49.4]} 19. Qxe4 {[%clk 0:01:10.2]}
19... Be7 {[%clk 0:01:41.1]} 20. Rd3 {[%clk 0:01:07.3]} 20... Ka8 {[%clk
0:01:35.9]} 21. Rhd1 {[%clk 0:01:06.8]} 21... Rd7 {[%clk 0:01:28.7]} 22. Bf4
{[%clk 0:01:05.4]} 22... Bd6 {[%clk 0:01:27.5]} 23. Bxd6 {[%clk 0:01:03.2]}
23... Qxd6 {[%clk 0:01:27.6]} 24. f4 {[%clk 0:00:57.5]} 24... Qd5 {[%clk
0:01:21.6]} 25. Qxd5 {[%clk 0:00:56.7]} 25... Rxd5 {[%clk 0:01:19.8]} 26. c4
{[%clk 0:00:43]} 26... Rd7 {[%clk 0:01:19.6]} 27. Kc2 {[%clk 0:00:33.1]} 27...
Rhd8 {[%clk 0:01:19.3]} 28. Kc3 {[%clk 0:00:30.3]} 28... b5 {[%clk 0:01:13.5]}
29. b3 {[%clk 0:00:28.8]} 29... Kb7 {[%clk 0:01:13.2]} 30. Kb4 {[%clk
0:00:19.6]} 30... Kb6 {[%clk 0:01:09.4]} 31. Kc3 {[%clk 0:00:18.9]} 31... a5
{[%clk 0:01:08.2]} 32. Kc2 {[%clk 0:00:18.6]} 32... b4 {[%clk 0:00:55]} 33. R1d2
{[%clk 0:00:18.3]} 33... h5 {[%clk 0:00:43.7]} 34. h4 {[%clk 0:00:17]} 34... Kc7
{[%clk 0:00:39]} 35. Rd1 {[%clk 0:00:15.2]} 35... Rh8 {[%clk 0:00:38.6]} 36. Kd2
{[%clk 0:00:13.2]} 36... Rh6 {[%clk 0:00:38.7]} 37. Ke3 {[%clk 0:00:13.1]} 37...
Rg6 {[%clk 0:00:38.6]} 38. Kf3 {[%clk 0:00:13.2]} 38... Rh6 {[%clk 0:00:32.6]}
39. d5 {[%clk 0:00:13.3]} 39... exd5 {[%clk 0:00:31]} 40. cxd5 {[%clk
0:00:13.5]} 40... Rhd6 {[%clk 0:00:27.5]} 41. Ke4 {[%clk 0:00:13]} 41... g6
{[%clk 0:00:23.7]} 42. dxc6 {[%clk 0:00:11]} 42... Rxd3 {[%clk 0:00:23.3]} 43.
Rxd3 {[%clk 0:00:10.8]} 43... Rxd3 {[%clk 0:00:23.3]} 44. Kxd3 {[%clk
0:00:10.8]} 44... Kxc6 {[%clk 0:00:23.8]} 45. Kc4 {[%clk 0:00:09.6]} 45... f6
{[%clk 0:00:21.7]} 46. Kd4 {[%clk 0:00:09.5]} 46... Kd6 {[%clk 0:00:21.9]} 47.
Kc4 {[%clk 0:00:08.6]} 47... Kc6 {[%clk 0:00:21.9]} 48. Kd4 {[%clk 0:00:08.8]}
48... Kd6 {[%clk 0:00:22]} 49. Kc4 {[%clk 0:00:09.1]} 49... Kc6 {[%clk
0:00:22.1]} 1/2-1/2

[Event "*** Titled Tuesday Blitz"]
[Site "Chess.com"]
[Date "2021.02.16"]
[Round "11"]
[White "lucachess49"]
[Black "ElCoachRene"]
[Result "1-0"]
[WhiteElo "2357"]
[BlackElo "2224"]
[TimeControl "180+1"]
[EndTime "12:10:26 PST"]
[Termination "lucachess49 won on time"]

1. d4 {[%clk 0:02:56.1]} 1... Nc6 {[%clk 0:03:00.1]} 2. d5 {[%clk 0:02:54.7]}
2... Ne5 {[%clk 0:03:00.4]} 3. e4 {[%clk 0:02:53.2]} 3... e6 {[%clk 0:03:00.4]}
4. c4 {[%clk 0:02:48]} 4... exd5 {[%clk 0:02:58.7]} 5. cxd5 {[%clk 0:02:47.9]}
5... Nf6 {[%clk 0:02:56.4]} 6. Nc3 {[%clk 0:02:46.9]} 6... Bb4 {[%clk 0:02:53]}
7. f3 {[%clk 0:02:46.5]} 7... Bxc3+ {[%clk 0:02:47.9]} 8. bxc3 {[%clk
0:02:47.4]} 8... d6 {[%clk 0:02:48.4]} 9. Ne2 {[%clk 0:02:03.3]} 9... O-O {[%clk
0:02:46.5]} 10. Nf4 {[%clk 0:01:56.7]} 10... Qe7 {[%clk 0:02:24.7]} 11. Be2
{[%clk 0:01:47.2]} 11... a5 {[%clk 0:02:12.8]} 12. O-O {[%clk 0:01:46.3]} 12...
b6 {[%clk 0:02:03.7]} 13. Be3 {[%clk 0:01:38.3]} 13... h6 {[%clk 0:01:50.9]} 14.
Bd4 {[%clk 0:01:28.3]} 14... Nfd7 {[%clk 0:01:43.2]} 15. Bb5 {[%clk 0:01:17.2]}
15... Nc5 {[%clk 0:01:42.2]} 16. Ne2 {[%clk 0:01:12.5]} 16... f5 {[%clk
0:01:35]} 17. Ng3 {[%clk 0:01:10.9]} 17... fxe4 {[%clk 0:01:25.1]} 18. fxe4
{[%clk 0:01:11.8]} 18... Bg4 {[%clk 0:01:16.9]} 19. Qd2 {[%clk 0:01:09.4]} 19...
Qh4 {[%clk 0:01:13.1]} 20. Bxe5 {[%clk 0:00:37.8]} 20... dxe5 {[%clk 0:01:09.9]}
21. d6 {[%clk 0:00:38.7]} 21... cxd6 {[%clk 0:01:05.3]} 22. Qxd6 {[%clk
0:00:39.6]} 22... Qd8 {[%clk 0:00:19]} 23. Bc4+ {[%clk 0:00:33.1]} 23... Kh8
{[%clk 0:00:17.5]} 24. Qxe5 {[%clk 0:00:32.1]} 24... Qd2 {[%clk 0:00:12.7]} 25.
Bd5 {[%clk 0:00:28.6]} 25... Rae8 {[%clk 0:00:10.1]} 26. Qd4 {[%clk 0:00:23.8]}
26... Qb2 {[%clk 0:00:02.7]} 27. Nf5 {[%clk 0:00:17]} 27... Bxf5 {[%clk
0:00:02.2]} 28. exf5 {[%clk 0:00:17.5]} 28... Rd8 {[%clk 0:00:02]} 29. Rad1
{[%clk 0:00:15.9]} 29... Qxa2 {[%clk 0:00:01.7]} 30. Bxa2 {[%clk 0:00:15]} 30...
Rxd4 {[%clk 0:00:01.9]} 31. cxd4 {[%clk 0:00:15.9]} 31... Ne4 {[%clk 0:00:02]}
32. d5 {[%clk 0:00:15.5]} 32... Nc3 {[%clk 0:00:02]} 33. Rd2 {[%clk 0:00:14.9]}
33... Ne4 {[%clk 0:00:01.3]} 34. Rd4 {[%clk 0:00:14.5]} 34... Nd6 {[%clk
0:00:01.7]} 35. g3 {[%clk 0:00:13.4]} 35... Kh7 {[%clk 0:00:02.2]} 36. g4 {[%clk
0:00:13.4]} 36... g6 {[%clk 0:00:02.1]} 37. Re1 {[%clk 0:00:13.3]} 37... gxf5
{[%clk 0:00:01.8]} 38. Re6 {[%clk 0:00:13.7]} 38... fxg4 {[%clk 0:00:01.4]} 39.
Rxd6 {[%clk 0:00:13.2]} 1-0

[Event "*** Titled Tuesday Blitz"]
[Site "Chess.com"]
[Date "2021.02.16"]
[Round "11"]
[White "Spriteball"]
[Black "lelya96"]
[Result "1-0"]
[WhiteElo "2385"]
[BlackElo "2251"]
[TimeControl "180+1"]
[EndTime "12:10:27 PST"]
[Termination "Spriteball won by resignation"]

1. e4 {[%clk 0:03:00.9]} 1... e5 {[%clk 0:02:58.2]} 2. Nf3 {[%clk 0:03:01.2]}
2... Nc6 {[%clk 0:02:57.6]} 3. Bb5 {[%clk 0:03:01.7]} 3... a6 {[%clk 0:02:57.1]}
4. Ba4 {[%clk 0:03:02]} 4... Nf6 {[%clk 0:02:56.7]} 5. O-O {[%clk 0:03:02.2]}
5... b5 {[%clk 0:02:56.9]} 6. Bb3 {[%clk 0:03:02.1]} 6... Bc5 {[%clk 0:02:57.5]}
7. Re1 {[%clk 0:02:59]} 7... d6 {[%clk 0:02:54.6]} 8. c3 {[%clk 0:02:53.9]} 8...
O-O {[%clk 0:02:54]} 9. d4 {[%clk 0:02:46.9]} 9... Bb6 {[%clk 0:02:53.8]} 10. h3
{[%clk 0:02:40]} 10... h6 {[%clk 0:02:53.6]} 11. a4 {[%clk 0:02:30.7]} 11... Rb8
{[%clk 0:02:52.6]} 12. axb5 {[%clk 0:02:28.6]} 12... axb5 {[%clk 0:02:52.5]} 13.
Be3 {[%clk 0:02:25.2]} 13... Re8 {[%clk 0:02:42.2]} 14. Nbd2 {[%clk 0:02:21.1]}
14... Na5 {[%clk 0:02:37.8]} 15. Bc2 {[%clk 0:02:13.1]} 15... Bb7 {[%clk
0:02:31.4]} 16. d5 {[%clk 0:01:59.9]} 16... c6 {[%clk 0:02:22]} 17. b4 {[%clk
0:01:50.8]} 17... Bxe3 {[%clk 0:02:03.9]} 18. Rxe3 {[%clk 0:01:47.4]} 18... Nc4
{[%clk 0:02:04.4]} 19. Nxc4 {[%clk 0:01:46.2]} 19... bxc4 {[%clk 0:02:05]} 20.
dxc6 {[%clk 0:01:40.6]} 20... Bxc6 {[%clk 0:02:04.1]} 21. Qe2 {[%clk 0:01:40.6]}
21... Rc8 {[%clk 0:01:45.1]} 22. Nd2 {[%clk 0:01:37.1]} 22... d5 {[%clk
0:01:35.8]} 23. exd5 {[%clk 0:01:30.5]} 23... Qxd5 {[%clk 0:01:35.6]} 24. Ne4
{[%clk 0:01:23.5]} 24... Nh7 {[%clk 0:00:53.5]} 25. Rd1 {[%clk 0:01:21.2]} 25...
Qe6 {[%clk 0:00:43.7]} 26. Nd6 {[%clk 0:01:21]} 26... Ng5 {[%clk 0:00:31.6]} 27.
Bf5 {[%clk 0:00:59.9]} 27... Qf6 {[%clk 0:00:21.2]} 28. Bxc8 {[%clk 0:00:44]}
28... Rd8 {[%clk 0:00:21.4]} 29. Rxe5 {[%clk 0:00:36.2]} 29... Rxd6 {[%clk
0:00:21.1]} 30. Rxd6 {[%clk 0:00:35.5]} 30... Qxd6 {[%clk 0:00:21.4]} 31. Ba6
{[%clk 0:00:29]} 31... Qg6 {[%clk 0:00:19.6]} 32. Kh2 {[%clk 0:00:23.6]} 32...
Qd6 {[%clk 0:00:17.7]} 33. f4 {[%clk 0:00:21.6]} 33... Ne6 {[%clk 0:00:15.4]}
34. g3 {[%clk 0:00:18.5]} 34... Nc7 {[%clk 0:00:06.5]} 35. Bxc4 {[%clk 0:00:18]}
35... g6 {[%clk 0:00:05.9]} 36. b5 {[%clk 0:00:15.1]} 36... Bb7 {[%clk
0:00:05.5]} 37. Re7 {[%clk 0:00:10.6]} 37... Kg7 {[%clk 0:00:05.6]} 38. Rxf7+
{[%clk 0:00:10.5]} 38... Kg8 {[%clk 0:00:05.3]} 39. Rxc7+ {[%clk 0:00:10]} 1-0

[Event "*** Titled Tuesday Blitz"]
[Site "Chess.com"]
[Date "2021.02.16"]
[Round "11"]
[White "Tpros"]
[Black "chessdjw"]
[Result "0-1"]
[WhiteElo "2475"]
[BlackElo "2693"]
[TimeControl "180+1"]
[EndTime "12:10:30 PST"]
[Termination "chessdjw won on time"]

1. c4 {[%clk 0:03:00.9]} 1... g6 {[%clk 0:02:59.3]} 2. d4 {[%clk 0:02:59.7]}
2... Nf6 {[%clk 0:02:59.1]} 3. Nc3 {[%clk 0:03:00.5]} 3... d5 {[%clk 0:02:59.2]}
4. Bf4 {[%clk 0:03:00.1]} 4... Bg7 {[%clk 0:02:59.2]} 5. Rc1 {[%clk 0:02:59.9]}
5... O-O {[%clk 0:02:56.6]} 6. e3 {[%clk 0:02:59]} 6... Be6 {[%clk 0:02:56.4]}
7. c5 {[%clk 0:02:56.1]} 7... c6 {[%clk 0:02:54.7]} 8. h3 {[%clk 0:02:55.5]}
8... Bc8 {[%clk 0:02:46.7]} 9. Bd3 {[%clk 0:02:51.5]} 9... Nfd7 {[%clk
0:02:45.8]} 10. Nf3 {[%clk 0:02:40.4]} 10... e5 {[%clk 0:02:44.4]} 11. Bxe5
{[%clk 0:02:36.6]} 11... Nxe5 {[%clk 0:02:44.1]} 12. Nxe5 {[%clk 0:02:36.4]}
12... Bxe5 {[%clk 0:02:44.6]} 13. dxe5 {[%clk 0:02:36.1]} 13... Nd7 {[%clk
0:02:45.3]} 14. O-O {[%clk 0:02:01.9]} 14... Nxc5 {[%clk 0:02:42.8]} 15. Bb1
{[%clk 0:01:50.7]} 15... Qe7 {[%clk 0:02:42.1]} 16. Qd4 {[%clk 0:01:44.2]} 16...
Ne6 {[%clk 0:02:20.7]} 17. Qa4 {[%clk 0:01:35.2]} 17... Nc7 {[%clk 0:02:01.1]}
18. Qd4 {[%clk 0:01:21]} 18... c5 {[%clk 0:01:52.1]} 19. Nxd5 {[%clk 0:01:11.7]}
19... Qd8 {[%clk 0:01:02.3]} 20. Rxc5 {[%clk 0:01:05.8]} 20... Ne6 {[%clk
0:01:01.1]} 21. Nf6+ {[%clk 0:01:03.6]} 21... Qxf6 {[%clk 0:00:56]} 22. exf6
{[%clk 0:01:03.3]} 22... Nxd4 {[%clk 0:00:56.7]} 23. exd4 {[%clk 0:01:04.2]}
23... Rd8 {[%clk 0:00:57.4]} 24. d5 {[%clk 0:00:33.7]} 24... Rd6 {[%clk
0:00:46.6]} 25. Re1 {[%clk 0:00:27.6]} 25... Bd7 {[%clk 0:00:46.7]} 26. Rc7
{[%clk 0:00:23.1]} 26... Rxd5 {[%clk 0:00:32.7]} 27. Be4 {[%clk 0:00:18.3]}
27... Rd6 {[%clk 0:00:32.6]} 28. Bxb7 {[%clk 0:00:15.4]} 28... Rd8 {[%clk
0:00:31.7]} 29. Re7 {[%clk 0:00:13.7]} 29... Be8 {[%clk 0:00:28.8]} 30. Rc8
{[%clk 0:00:09.9]} 30... Rxc8 {[%clk 0:00:25.8]} 31. Bxc8 {[%clk 0:00:09.8]}
31... Kf8 {[%clk 0:00:26.4]} 32. Rxa7 {[%clk 0:00:09.6]} 32... Rxf6 {[%clk
0:00:27]} 33. Bg4 {[%clk 0:00:07.4]} 33... Rc6 {[%clk 0:00:26.4]} 34. Bf3 {[%clk
0:00:06.7]} 34... Rc1+ {[%clk 0:00:26.9]} 35. Kh2 {[%clk 0:00:06.6]} 35... Rc2
{[%clk 0:00:27.8]} 36. b4 {[%clk 0:00:06.7]} 36... Rxf2 {[%clk 0:00:28.2]} 37.
a4 {[%clk 0:00:06.8]} 37... Rb2 {[%clk 0:00:28.4]} 38. b5 {[%clk 0:00:06.6]}
38... h5 {[%clk 0:00:28.6]} 39. h4 {[%clk 0:00:05.4]} 39... Kg7 {[%clk
0:00:28.3]} 40. Re7 {[%clk 0:00:04.2]} 40... Kf8 {[%clk 0:00:27.7]} 41. Rb7
{[%clk 0:00:03.3]} 41... Rb4 {[%clk 0:00:27.1]} 42. Ra7 {[%clk 0:00:01.3]} 42...
Rxh4+ {[%clk 0:00:26.5]} 0-1

[Event "*** Titled Tuesday Blitz"]
[Site "Chess.com"]
[Date "2021.02.16"]
[Round "11"]
[White "NovikovaGalina"]
[Black "Piccadilly123"]
[Result "1-0"]
[WhiteElo "2392"]
[BlackElo "2253"]
[TimeControl "180+1"]
[EndTime "12:10:33 PST"]
[Termination "NovikovaGalina won on time"]

1. e4 {[%clk 0:02:59.8]} 1... e6 {[%clk 0:02:59.5]} 2. Nf3 {[%clk 0:02:59.9]}
2... d5 {[%clk 0:02:59.6]} 3. e5 {[%clk 0:03:00.4]} 3... c5 {[%clk 0:02:59.3]}
4. b4 {[%clk 0:03:00.8]} 4... cxb4 {[%clk 0:02:57.5]} 5. a3 {[%clk 0:03:01.2]}
5... Nc6 {[%clk 0:02:57.6]} 6. axb4 {[%clk 0:03:01.4]} 6... Bxb4 {[%clk
0:02:50.6]} 7. c3 {[%clk 0:03:01.6]} 7... Ba5 {[%clk 0:02:44]} 8. d4 {[%clk
0:03:01.7]} 8... Nge7 {[%clk 0:02:42.2]} 9. Bd3 {[%clk 0:03:01.8]} 9... h6
{[%clk 0:02:36.3]} 10. O-O {[%clk 0:03:01.5]} 10... Bd7 {[%clk 0:02:36.2]} 11.
Na3 {[%clk 0:03:00.1]} 11... a6 {[%clk 0:02:34.8]} 12. Bd2 {[%clk 0:02:57.6]}
12... O-O {[%clk 0:02:27.7]} 13. Nc2 {[%clk 0:02:56.5]} 13... b5 {[%clk
0:02:14.9]} 14. Nfe1 {[%clk 0:02:47.6]} 14... Qb6 {[%clk 0:02:03.9]} 15. f4
{[%clk 0:02:46.5]} 15... b4 {[%clk 0:01:41.7]} 16. Rb1 {[%clk 0:02:45.9]} 16...
b3 {[%clk 0:01:33]} 17. Ne3 {[%clk 0:02:42.9]} 17... Rab8 {[%clk 0:01:26.5]} 18.
Kh1 {[%clk 0:02:13.5]} 18... Qa7 {[%clk 0:01:21.5]} 19. f5 {[%clk 0:02:07.1]}
19... exf5 {[%clk 0:01:21]} 20. Nxf5 {[%clk 0:02:03.4]} 20... Nxf5 {[%clk
0:01:20.7]} 21. Bxf5 {[%clk 0:02:04.3]} 21... Bxf5 {[%clk 0:01:20.8]} 22. Rxf5
{[%clk 0:02:05.2]} 22... Qd7 {[%clk 0:01:19.1]} 23. Qf3 {[%clk 0:02:04.5]} 23...
Nxd4 {[%clk 0:01:17.5]} 24. cxd4 {[%clk 0:02:02.6]} 24... Bxd2 {[%clk
0:01:17.9]} 25. Nd3 {[%clk 0:02:02.1]} 25... a5 {[%clk 0:00:51.4]} 26. Nc5
{[%clk 0:02:00.7]} 26... Qc6 {[%clk 0:00:51.8]} 27. Rxb3 {[%clk 0:01:48.4]}
27... a4 {[%clk 0:00:45.7]} 28. Rxb8 {[%clk 0:01:42.5]} 28... Rxb8 {[%clk
0:00:46.6]} 29. h3 {[%clk 0:01:43]} 29... Qg6 {[%clk 0:00:45.7]} 30. Nxa4 {[%clk
0:01:08.1]} 30... Bb4 {[%clk 0:00:45.1]} 31. Kh2 {[%clk 0:01:03]} 31... Bf8
{[%clk 0:00:38.5]} 32. Rf4 {[%clk 0:01:03.1]} 32... Qg5 {[%clk 0:00:25.2]} 33.
Rxf7 {[%clk 0:00:59.9]} 33... Be7 {[%clk 0:00:20.1]} 34. Qxd5 {[%clk 0:00:38.4]}
34... Kh8 {[%clk 0:00:18.9]} 35. Rf3 {[%clk 0:00:33.3]} 35... Rb4 {[%clk
0:00:15]} 36. Nc5 {[%clk 0:00:31.9]} 36... Rb2 {[%clk 0:00:14.7]} 37. Rg3 {[%clk
0:00:26.5]} 37... Qf4 {[%clk 0:00:11.1]} 38. Ne6 {[%clk 0:00:23]} 38... Qf2
{[%clk 0:00:01.9]} 39. Qa8+ {[%clk 0:00:17.5]} 1-0